[Event "5th Baskent University Open 2022"]
[Site "Ankara"]
[Date "2022.07.06"]
[Round "8.10"]
[White "Citak, Selim"]
[Black "Tarhan, Adar"]
[Result "1/2-1/2"]
[ECO "D37"]
[WhiteElo "2176"]
[BlackElo "2201"]
[Annotator "TA"]
[PlyCount "54"]
[EventDate "2022.07.02"]
[EventType "swiss"]
[EventCountry "TUR"]
[SourceTitle "playchess.com"]
[Source "ChessBase"]
[SourceQuality "1"]
[TimeControl "5400+30"]

{[%evp 10,54,23,13,45,31,65,41,45,50,117,51,51,46,57,77,122,105,136,72,74,70,74,91,202,79,111,53,37,39,40,14,244,249,238,257,366,344,317,0,0,0,0,0,0,0,0]} 1. d4 {[%emt 0:01:00]} d5 {[%emt 0:01:00]} 2. c4 {[%emt 0:00:30]} e6 {[%emt 0:00:30]} 3. Nc3 {[%emt 0:00:00]} Nf6 {[%emt 0:00:00]} 4. Nf3 {[%emt 0:00:00]} Be7 {[%emt 0:00:00]} 5. Bf4 {[%emt 0:00:00]} O-O {[%emt 0:00:00]} 6. e3 {[%emt 0:00:00]} Ne4 {[%emt 0:01:00] D37: Queen's Gambit Declined: 5 Bf4.} 7. Bd3 {[%emt 0:07:30]} f5 {[%emt 0:02:30]} 8. cxd5 {[%emt 0:03:30]} exd5 {[%emt 0:00:00] White is slightly better.} 9. Qb3 {[%emt 0:01:30][%csl LRd5,LRe4] [#]} Nf6 $146 {[%emt 0:02:00]} ({Black should try} 9... Nxc3 $1 $14 10. bxc3 (10. Qxc3 Nc6 $11) 10... g5) ({Predecessor:} 9... c6 10. Nxe4 fxe4 11. Bxe4 Bb4+ 12. Qxb4 dxe4 13. Nd2 Qe8 14. Qc4+ Be6 15. Qc2 Bf5 {½-½ (44) Szoboszlai,C (1349)-Jonas,B (1304) Gyor 2016}) 10. O-O-O {[%emt 0:05:30] White is much more active.} ({White should play} 10. Qc2 $16) 10... c6 $14 {[%emt 0:00:30]} 11. Ne5 {[%emt 0:01:30]} Qb6 {[%emt 0:02:30]} 12. Qc2 {[%emt 0:02:30]} Ne4 {[%emt 0:03:30]} 13. Na4 {[%emt 0:05:30]} Qa5 {[%emt 0:00:30][%cal Oe4f2]} 14. f3 {[%emt 0:03:30]} (14. g4 $142 $1) 14... Nf2 $16 {[%emt 0:00:30]} 15. Qxf2 {[%emt 0:00:30]} Qxa4 {[%emt 0:00:30]} 16. Kb1 $36 {[%emt 0:01:30][%mdl 2048] Black is under strong pressure.} Be6 {[%emt 0:04:30] [#]} (16... Na6 $16) 17. h3 {[%emt 0:05:30]} (17. g4 $1 $18) 17... Na6 {[%emt 0:01:30] [#]} 18. a3 {[%emt 0:03:30]} (18. Bc2 $1 $16 {[%cal Rc2a4]} Qb5 19. Bd3) 18... c5 $1 $14 {[%emt 0:03:30][%cal Bc6c5,Bc5c4][%mdl 32]} 19. g4 {[%emt 0:01:30][%cal Bg2g4,Bg4f5][%mdl 32]} c4 $1 {[%emt 0:02:30]} 20. Qc2 {[%emt 0:05:30]} Qb5 {[%emt 0:04:30]} (20... Qxc2+ $11 21. Bxc2 Nb8) 21. Bxf5 $18 {[%emt 0:00:30]} Bxf5 {[%emt 0:00:30]} 22. gxf5 {[%emt 0:00:30] Hoping for Rhg1.} Bxa3 {[%emt 0:00:00]} (22... Nc7 {might work better.} 23. a4 Qe8) 23. Rhg1 {[%emt 0:01:30][%cal Og1g7] White threatens Rxg7+! and mate.} Rf6 {[%emt 0:00:00]} 24. Qg2 $2 {[%emt 0:06:30] Chess con chili.} ({Better is} 24. Rd2 $18 {And now Rdg2 would win.} Bf8 25. Ng4) 24... Bf8 $11 {[%emt 0:01:30] The position is equal.} 25. Ng4 {[%emt 0:00:30][%cal Be5g4,Bg4h6,Bh6f7][%mdl 32]} Rb6 {[%emt 0:01:30]} 26. Nh6+ {[%emt 0:02:30]} Kh8 {[%emt 0:00:30] aiming for ...Qd7.} 27. Nf7+ {[%emt 0:18:30]} Kg8 {[%emt 0:00:00] Weighted Error Value: White=0.32/Black=0.40} 1/2-1/2

[Event "5th Baskent University Open 2022"]
[Site "Ankara"]
[Date "2022.07.06"]
[Round "8.11"]
[White "Maruflu, Enes Yusuf"]
[Black "Zor, Alber Kadir"]
[Result "0-1"]
[ECO "E73"]
[WhiteElo "2046"]
[BlackElo "2116"]
[Annotator "TA"]
[PlyCount "178"]
[EventDate "2022.07.02"]
[EventType "swiss"]
[EventCountry "TUR"]
[SourceTitle "playchess.com"]
[Source "ChessBase"]
[SourceQuality "1"]
[TimeControl "5400+30"]

{[%evp 13,178,28,23,31,33,23,25,21,27,27,25,30,28,27,24,30,29,-3,35,0,53,0,0,0,0,0,14,-59,0,0,0,-21,0,0,0,0,0,0,0,0,0,-87,-98,-100,-100,-66,0,-12,-44,-44,-40,-37,0,0,-6,-33,-40,-29,-28,-174,-154,-221,-229,-319,-292,-373,-359,-362,-327,-350,-325,-396,-381,-435,-434,-429,-373,-430,-302,-302,-288,-285,-79,-84,0,-278,-269,-223,-189,-310,-317,-618,-279,-477,-331,-716,-530,-683,-675,-382,-417,-670,-660,-641,-400,-697,-696,-663,-651,-631,-572,-505,0,-397,-393,-500,-339,-339,-336,-397,-383,-291,-132,-163,-165,-648,-858,-992,-923,-6475,-6207,-7074,-5210,-5156,-5146,-1411,-535,-29976,-29979,-29984,-29978,-29984,-29965,-29973,-29974,-29975,-29978,-29980,-29981,-29982,-29978,-29976,-29976,-29980,-29981,-29981,-29982,-29985,-29986,-29990,-29987,-29987,-29988,-29988,-29989,-29989,-29990]} 1. c4 {[%emt 0:01:00]} Nf6 {[%emt 0:01:00]} 2. d4 {[%emt 0:00:00]} g6 {[%emt 0:00:30]} 3. Nc3 {[%emt 0:00:00]} Bg7 {[%emt 0:00:00]} 4. e4 {[%emt 0:00:30]} d6 {[%emt 0:01:00]} 5. Be2 {[%emt 0:00:30]} O-O {[%emt 0:01:30]} 6. Be3 {[%emt 0:00:30]} c5 {[%emt 0:06:30]} 7. d5 {[%emt 0:00:30]} e6 {[%emt 0:00:30]} 8. Nf3 {[%emt 0:00:30] E73: King's Indian: Averbakh Variation without 6...c5.} exd5 {[%emt 0:06:30]} 9. cxd5 {[%emt 0:06:30]} Bg4 {[%emt 0:00:30][%cal Ob7b5]} 10. O-O {[%emt 0:02:30] White has an edge.} Bxf3 {[%emt 0:00:30]} 11. Bxf3 {[%emt 0:00:30]} Re8 {[%emt 0:00:30]} 12. Bf4 {[%emt 0:01:30]} a6 {[%emt 0:01:30]} 13. a4 {[%emt 0:01:30]} Qc7 {[%emt 0:01:30] [#]} 14. Qc2 $146 {[%emt 0:06:30]} ({Predecessor:} 14. a5 Nbd7 15. Qc2 Ne5 16. Be2 Rac8 17. Rfc1 Qe7 18. Ra4 Qc7 19. Qd2 {1-0 (19) Sandehn,K (2179)-Paetzold,O (1813) IECG email 2002}) 14... Nbd7 {[%emt 0:01:30][%cal Bb8d7,Bd7e5,Be5g6][%mdl 32]} 15. h3 {[%emt 0:03:30]} h6 {[%emt 0:03:30]} 16. Be2 {[%emt 0:01:30]} Re7 {[%emt 0:05:30]} (16... c4 $11) 17. Rfe1 {[%emt 0:06:30]} (17. a5 $14) 17... Rae8 $11 {[%emt 0:01:30][%cal Rf6e4]} 18. Bf1 {[%emt 0:01:30]} g5 {[%emt 0:01:30]} 19. Bh2 {[%emt 0:03:30]} Ne5 {[%emt 0:01:30]} 20. f4 {[%emt 0:07:30]} ({Better is} 20. Kh1 $11) 20... gxf4 {[%emt 0:09:30]} (20... Ng6 $1 $15 21. fxg5 hxg5) 21. Bxf4 {[%emt 0:00:00]} Ng6 {[%emt 0:00:00] Pair of Knights!} 22. Bg3 {[%emt 0:01:00]} Nd7 {[%emt 0:11:00]} (22... Nh5 $5 {[%cal Rh5g3]} 23. Bf2 Bd4 $11) 23. Kh1 {[%emt 0:09:30]} Be5 {[%emt 0:06:30]} 24. Ne2 {[%emt 0:01:30]} Nf6 {[%emt 0:03:30][%cal Of6e4]} 25. Bxe5 {[%emt 0:02:30]} Rxe5 {[%emt 0:00:30]} ({Don't play} 25... Nxe5 26. Ng3 $16) 26. Ng3 {[%emt 0:00:30]} h5 {[%emt 0:22:26] ...h4 is the strong threat.} 27. Qf2 {[%emt 0:03:30]} (27. Bd3 $11) 27... Nxe4 $17 {[%emt 0:03:07]} 28. Rxe4 {[%emt 0:00:30]} Rxe4 {[%emt 0:00:00]} 29. Nxh5 {[%emt 0:00:30] Hoping for Qf6.} R8e5 {[%emt 0:00:12]} (29... Qe7 $1 $15 30. Nf6+ Kg7 31. Nxe8+ Qxe8) 30. Nf6+ {[%emt 0:00:30]} Kg7 $1 {[%emt 0:00:30]} 31. Nxe4 {[%emt 0:00:30]} Rxe4 {[%emt 0:00:30]} 32. Bd3 {[%emt 0:00:30]} Re5 {[%emt 0:01:49]} (32... Rd4 $5 {[%cal Rd4d3]} 33. Qg3 Qe7 $15) 33. Rf1 {[%emt 0:02:30]} Qe7 {[%emt 0:00:02]} 34. Bxg6 {[%emt 0:05:30]} (34. a5 {keeps more tension.} Nh4 35. Qf4 Re3 36. Bb1) 34... fxg6 $11 {[%emt 0:00:30][%mdl 4096] Endgame KQR-KQR} 35. Qd2 {[%emt 0:01:30]} b5 {[%emt 0:07:45]} 36. axb5 {[%emt 0:01:30]} (36. Qa5 $11 {and White is okay.}) 36... axb5 $19 {[%emt 0:00:08][%cal Ba6b5,Bb5b4][%mdl 32]} 37. Qa5 {[%emt 0:08:30] [#]} (37. b4 $17 c4 38. Qd4) 37... b4 $1 {[%emt 0:00:25]} 38. Qa1 {[%emt 0:02:36]} Rxd5 {[%emt 0:00:48]} 39. b3+ {[%emt 0:00:30]} Re5 {[%emt 0:00:00]} 40. Kh2 {[%emt 0:00:24]} Kh7 {[%emt 0:03:02]} 41. Rf4 {[%emt 0:02:31]} Re4 {[%emt 0:00:40]} 42. Rxe4 {[%emt 0:00:52]} Qxe4 {[%emt 0:00:30] KQ-KQ} 43. Qa7+ {[%emt 0:00:30]} Kh6 {[%emt 0:00:30]} 44. Qf7 {[%emt 0:00:00] Prevents c4.} Qf5 {[%emt 0:00:23]} 45. Qg8 {[%emt 0:00:02]} Qe5+ {[%emt 0:00:29]} 46. g3 {[%emt 0:01:20]} Qb2+ {[%emt 0:00:04]} 47. Kg1 {[%emt 0:00:58]} Qa1+ $2 {[%emt 0:00:30]} (47... Qg7 $19 {has better winning chances.} 48. Qc4 Qe5) 48. Kg2 $17 {[%emt 0:00:30] [#]} Qb2+ $2 {[%emt 0:00:00]} (48... Qf6 $1 $17 {[%cal Rf6b2]} 49. h4 Qg7) 49. Kg1 $1 $19 {[%emt 0:00:00]} Qg7 {[%emt 0:00:36]} 50. Qd8 {[%emt 0:00:44][%cal Rd8h4]} Qe5 {[%emt 0:01:22]} 51. Kf2 {[%emt 0:02:20]} (51. Qf8+ $142 Kg5 52. Kg2) 51... Kg7 {[%emt 0:00:55] And now ...Qf6+ would win.} 52. Qd7+ $2 {[%emt 0:02:40]} (52. Kg2) 52... Kf8 {[%emt 0:00:04]} (52... Kf6 $142 {Threatens to win with ...Qf5+.} 53. Qd8+ Qe7 54. Qh8+ Ke6) 53. Qd8+ $2 {[%emt 0:00:28]} (53. g4) 53... Kf7 {[%emt 0:00:03]} 54. Kg2 $2 {[%emt 0:01:49]} (54. Qc7+ Qe7 55. Qc6) 54... Qb2+ {[%emt 0:00:21]} 55. Kh1 {[%emt 0:01:00]} Qa1+ {[%emt 0:00:30]} 56. Kg2 {[%emt 0:00:00]} Qa2+ {[%emt 0:00:17]} 57. Kh1 {[%emt 0:00:14]} (57. Kg1 $142 Qxb3 58. Qd7+ Kg8 59. Qxd6) 57... Qb1+ {[%emt 0:00:30]} 58. Kg2 {[%emt 0:00:30]} Qc2+ {[%emt 0:00:00]} 59. Kh1 {[%emt 0:00:17]} (59. Kg1 $142 Qxb3 60. Qd7+ Kg8 61. Qe8+ Kg7 62. Qe7+ Qf7 63. Qxd6) 59... Qd1+ {[%emt 0:00:00]} 60. Kg2 {[%emt 0:00:30]} Qe2+ {[%emt 0:00:00]} 61. Kg1 {[%emt 0:00:00]} Qe1+ {[%emt 0:00:00]} 62. Kg2 {[%emt 0:00:00]} Qe2+ {[%emt 0:01:53]} 63. Kg1 {[%emt 0:00:00]} Qe7 {[%emt 0:00:12]} 64. Qb8 {[%emt 0:00:31]} Kg7 {[%emt 0:02:22]} 65. h4 {[%emt 0:00:46]} d5 {[%emt 0:00:35][%cal Bd6d5,Bd5c4,Bc4c3,Bc3c2][%mdl 32]} 66. Qb6 {[%emt 0:00:34]} Kh7 {[%emt 0:00:41] aiming for ...c4.} 67. Qb5 {[%emt 0:00:20] Prevents c4.} Qc7 {[%emt 0:00:47]} (67... d4 $19 {and Black stays clearly on top. White must now prevent ...Kh6.} 68. Qc4 Qd6 69. Qf7+ Kh6) 68. Kh2 {[%emt 0:00:20]} Kg7 {[%emt 0:00:25]} 69. Qe2 $2 {[%emt 0:00:45]} (69. Kh3) 69... c4 {[%emt 0:00:36] Strongly threatening ...c3.} 70. bxc4 {[%emt 0:00:30]} dxc4 {[%emt 0:00:00]} 71. Qb2+ {[%emt 0:00:47]} c3 {[%emt 0:00:17]} 72. Qxb4 {[%emt 0:00:30]} c2 {[%emt 0:00:30]} 73. Qb2+ {[%emt 0:00:00]} Kh7 {[%emt 0:00:00]} 74. Qc1 {[%emt 0:00:00]} Qc3 {[%emt 0:00:03]} (74... Qc4 $142 {( -> ...Qe2+)} 75. g4 Kg8) 75. h5 {[%emt 0:01:07]} gxh5 {[%emt 0:00:18] Black mates.} 76. Kh3 {[%emt 0:01:51]} Kg6 {[%emt 0:00:16]} 77. Kh2 {[%emt 0:00:56]} Kf5 {[%emt 0:01:56]} 78. Qf4+ {[%emt 0:01:08]} Ke6 {[%emt 0:00:01]} 79. Qe4+ {[%emt 0:01:26]} Kd6 {[%emt 0:00:09]} 80. Qg6+ {[%emt 0:00:33]} Kc5 {[%emt 0:00:14]} 81. Qf5+ {[%emt 0:01:20]} Kb4 {[%emt 0:00:15]} 82. Qe4+ {[%emt 0:02:04]} Kb3 {[%emt 0:00:58]} 83. Qd5+ {[%emt 0:01:03]} Qc4 {[%emt 0:01:29]} 84. Qf3+ {[%emt 0:02:42]} Kb4 {[%emt 0:00:02]} 85. Qb7+ {[%emt 0:00:30]} Kc3 {[%emt 0:00:02]} 86. Qf3+ {[%emt 0:00:00]} Qd3 {[%emt 0:01:04]} 87. Qf6+ {[%emt 0:00:12]} Kd2 {[%emt 0:00:00]} 88. Qf4+ {[%emt 0:01:28]} Kd1 {[%emt 0:00:23]} 89. Qa4 {[%emt 0:00:00]} Ke1 {[%emt 0:00:51] Weighted Error Value: White=0.48/Black=0.34} 0-1

[Event "5th Baskent University Open 2022"]
[Site "Ankara"]
[Date "2022.07.06"]
[Round "8.12"]
[White "Ozkan, Taha"]
[Black "Ozturk, Efe Hakan"]
[Result "1-0"]
[ECO "E91"]
[WhiteElo "2357"]
[BlackElo "2115"]
[Annotator "TA"]
[PlyCount "183"]
[EventDate "2022.07.02"]
[EventType "swiss"]
[EventCountry "TUR"]
[SourceTitle "playchess.com"]
[Source "ChessBase"]
[SourceQuality "1"]
[TimeControl "5400+30"]

{[%evp 16,183,70,57,48,46,69,52,77,33,67,56,45,41,69,58,46,31,50,50,99,100,86,88,68,78,87,91,89,58,44,18,9,20,20,12,19,25,24,0,152,163,150,152,161,143,147,158,154,142,156,27,25,28,32,39,116,112,150,150,171,112,224,127,270,279,490,490,483,483,483,468,535,535,535,527,530,520,750,1558,1698,1592,1706,486,1414,1456,1202,1065,1410,1392,1284,1010,29956,283,29978,29979,29979,29980,29975,0,61,61,510,29961,29961,29962,29963,29962,29960,12825,6150,2599,4885,0,29970,29971,29951,4885,29971,29973,29974,29973,29972,29955,29979,29979,29978,29979,29979,29977,29977,29978,29976,29977,29977,29975,29975,29968,29966,29967,29967,29957,29981,29951,1589,218,225,0,29970,29972,29973,0,29972,29964,29981,29978,29979,29977,29976,29977,29977,29978,29970,3239,29984,29985,29985,29986,29988,29989]} 1. e4 {[%emt 0:03:00]} g6 {[%emt 0:04:00]} 2. d4 {[%emt 0:00:30]} Bg7 {[%emt 0:00:00]} 3. Nf3 {[%emt 0:00:30]} c6 {[%emt 0:03:00]} 4. c4 {[%emt 0:00:30]} d6 {[%emt 0:07:30]} 5. Nc3 {[%emt 0:00:30]} Nf6 {[%emt 0:00:30]} 6. Be2 {[%emt 0:00:30]} O-O {[%emt 0:01:30]} 7. O-O {[%emt 0:00:30]} Bg4 {[%emt 0:08:30]} 8. Be3 {[%emt 0:04:30]} Nbd7 {[%emt 0:01:30]} 9. Qc2 {[%emt 0:05:30]} e5 {[%emt 0:05:30] E91: King's Indian: Classical: 6 Be2, unusual replies including 6...c5 and 6...Bg4.} 10. Rad1 {[%emt 0:00:30]} Qc7 {[%emt 0:04:30] [#]} 11. a3 $146 {[%emt 0:15:30]} ({Predecessor:} 11. d5 Rfe8 12. b4 a6 13. Qd2 Rac8 14. dxc6 Qxc6 15. b5 axb5 16. Qxd6 bxc4 17. h3 Qxd6 18. Rxd6 {1-0 (46) Thompson,E (1890)-Tandoh,C Accra 2016}) 11... a5 {[%emt 0:07:30] White is slightly better.} 12. Rfe1 {[%emt 0:05:30]} Rfe8 {[%emt 0:03:30]} 13. dxe5 {[%emt 0:10:30]} dxe5 {[%emt 0:04:30]} 14. Na4 {[%emt 0:00:00]} Nh5 {[%emt 0:09:30]} 15. h3 {[%emt 0:03:00]} (15. Ng5 {seems wilder.} Bxe2 16. Rxe2 Nf4 17. Red2) 15... Bxf3 {[%emt 0:01:30]} 16. Bxf3 {[%emt 0:00:00]} (16. gxf3 Nf4 $15) 16... Nf4 {[%emt 0:00:30]} 17. Bg4 {[%emt 0:06:00]} Nf6 {[%emt 0:08:30]} (17... Nf8 $14 {was preferrable.}) 18. Bb6 $1 $16 {[%emt 0:00:30]} Qb8 {[%emt 0:00:00]} 19. Bd7 {[%emt 0:05:30]} Re7 {[%emt 0:10:33]} 20. Nc5 {[%emt 0:03:30][%cal Ba4c5,Bc5d7,Bd7e5][%mdl 32]} Nxd7 {[%emt 0:05:38]} 21. Nxd7 {[%emt 0:03:30]} Qc8 {[%emt 0:00:38]} 22. Qd2 {[%emt 0:00:30] Bc5 is the strong threat.} Ne6 {[%emt 0:00:30]} 23. Qd6 {[%emt 0:03:30]} Qe8 {[%emt 0:04:01]} 24. Nxe5 {[%emt 0:01:30]} Ng5 {[%emt 0:02:33]} 25. Nd7 $36 {[%emt 0:08:35][%mdl 2048] White has good play.} Nxe4 {[%emt 0:01:09]} 26. Qc7 {[%emt 0:01:03][%csl LRa5,LRb7]} Bxb2 {[%emt 0:03:38]} 27. Re3 {[%emt 0:09:19]} Nf6 $2 {[%emt 0:01:18]} (27... Qc8 $1 $11) 28. Qxb7 {[%emt 0:01:35] aiming for Rxe7. White is much more active.} Rxe3 {[%emt 0:01:30]} 29. Bxe3 {[%emt 0:00:20]} Nxd7 {[%emt 0:00:46][%cal Bf6d7,Bd7e5,Be5c4][%mdl 32]} 30. Qxb2 {[%emt 0:00:04]} (30. Rxd7 $6 Rb8 31. Qxc6 Bxa3 $14) 30... Ne5 {[%emt 0:00:22]} 31. Qc3 {[%emt 0:00:42]} Qe6 {[%emt 0:00:37]} 32. c5 {[%emt 0:02:26]} Re8 {[%emt 0:00:30]} 33. Qxa5 {[%emt 0:02:14]} (33. Rd6 $16 Qe7 34. a4) 33... Nc4 $11 {[%emt 0:00:30][%csl LRa5,LRe3]} 34. Qc3 {[%emt 0:00:00]} Nxe3 {[%emt 0:00:00]} 35. Re1 {[%emt 0:00:00][%cal Re1e3][%mdl 64] Pin} Qd5 {[%emt 0:01:15]} 36. Rxe3 $16 {[%emt 0:00:23]} Rxe3 {[%emt 0:00:21]} 37. Qxe3 {[%emt 0:00:00][%mdl 4096] Endgame KQ-KQ} h5 {[%emt 0:00:30]} 38. h4 {[%emt 0:00:00]} (38. g3 $18) 38... Qd1+ {[%emt 0:00:52]} (38... Qc4 $16) 39. Kh2 $18 {[%emt 0:00:23]} Qa4 {[%emt 0:00:00]} (39... Qd5 $16 40. Qc3 Qe4) 40. g3 {[%emt 0:00:00]} Qc2 $2 {[%emt 0:01:17]} (40... Kf8 41. Kg2 Qa5 42. Qh6+ Kg8) 41. Kg2 {[%emt 0:00:06]} Qa4 {[%emt 0:00:00]} 42. Qe8+ {[%emt 0:01:29]} Kg7 {[%emt 0:00:20]} 43. Qe5+ {[%emt 0:00:00]} Kh7 {[%emt 0:00:22]} 44. Qf4 {[%emt 0:00:15]} Qb3 {[%emt 0:01:01]} 45. Qf3 {[%emt 0:00:07]} Qe6 {[%emt 0:00:26]} 46. a4 {[%emt 0:00:11] Strongly threatening a5.} Kg8 {[%emt 0:00:20]} 47. a5 {[%emt 0:00:15]} Qa2 {[%emt 0:00:17]} 48. Qxc6 {[%emt 0:00:30] a6 would kill now.} Qxa5 {[%emt 0:00:00]} 49. Qe8+ {[%emt 0:00:19]} (49. Qb6 $142 Qd2 50. c6 Qd5+ 51. Kh2) 49... Kg7 {[%emt 0:00:00]} 50. Qe5+ {[%emt 0:00:19]} Kh7 {[%emt 0:00:37]} 51. Qd6 {[%emt 0:00:26] Black must now prevent c6.} Qb4 {[%emt 0:01:30]} 52. Qd5 {[%emt 0:00:35]} Kg7 {[%emt 0:00:25]} 53. c6 {[%emt 0:00:00][%cal Bc5c6,Bc6c7][%mdl 32] Threatening mate with c7.} Qc3 {[%emt 0:00:40]} 54. Qd7 $2 {[%emt 0:00:00]} (54. Qb5 Qc2 55. Qb6 Qe4+ 56. Kh2 Kh7 57. c7 Qf5 58. Kg1 Qc2 59. Qb7) 54... Qc4 $2 {[%emt 0:00:25]} (54... Qb4 $18 55. Qd5 Qb8 56. Qd4+ Kg8) 55. c7 {[%emt 0:00:39]} Qe4+ {[%emt 0:00:30]} 56. Kh2 {[%emt 0:00:00]} Qc2 {[%emt 0:00:02]} 57. Kg2 $2 {[%emt 0:07:43]} (57. c8=Q Qxf2+ 58. Kh3 Qf1+ 59. Kh2 Qf2+ 60. Kh3 Qf1+ 61. Kh2 Qf2+ $11) (57. Qd4+ $1 {mates} Kh7 58. Qb6 g5 59. hxg5 h4 60. gxh4 f6 61. gxf6 Qf5 62. c8=Q) 57... Qe4+ $14 {[%emt 0:00:03]} 58. Kf1 $1 {[%emt 0:00:01]} ({Weaker is} 58. Kh2 Qc2 59. Qd4+ (59. c8=Q Qxf2+ 60. Kh3 Qf1+ 61. Kh2 Qf2+ 62. Kh3 Qf1+ 63. Kh2 Qf2+ $11) 59... Kh7 $18) 58... Qb1+ $2 {[%emt 0:01:32][%mdl 8192]} (58... Qh1+ $14 59. Ke2 Qe4+ 60. Kd2 Qb4+ 61. Kc2 Qc4+ 62. Kb2 Qe2+ 63. Kb3 Qf3+ 64. Kc4 Qe2+ 65. Qd3 Qe8) 59. Ke2 $18 {[%emt 0:00:10]} Qe4+ {[%emt 0:00:54]} 60. Kd2 {[%emt 0:00:30]} Qb4+ {[%emt 0:00:00]} 61. Ke3 {[%emt 0:00:31]} Qe1+ {[%emt 0:00:31]} 62. Kf3 {[%emt 0:00:36]} Qh1+ {[%emt 0:00:03] [#]} 63. Kf4 $1 {[%emt 0:00:29]} Qc1+ {[%emt 0:00:09]} 64. Ke5 $2 {[%emt 0:00:10]} ({White has to play} 64. Ke4 $18 Qe1+ 65. Kd5 Qd1+ 66. Kc6 Qa4+ 67. Kd6 Qd4+ 68. Ke7 Qf6+ 69. Ke8 Qe5+ 70. Qe7 Qb5+ 71. Kd8) 64... Qe1+ $2 {[%emt 0:00:45][%mdl 8192] [#]} (64... Qc3+ $11 65. Kd5 Qd2+ 66. Kc6 Qc3+ 67. Kb6 Qf6+ 68. Qc6 Qxf2+ 69. Qc5 Qb2+ 70. Kc6 Qf6+ 71. Kb7 Qb2+ 72. Qb6 Qg2+ 73. Ka7 Qc2) 65. Kd6 $1 {[%emt 0:00:30]} Qb4+ {[%emt 0:00:30]} 66. Kd5 {[%emt 0:00:06]} Qa5+ {[%emt 0:00:58]} 67. Kc4 {[%emt 0:00:11]} Qa2+ {[%emt 0:00:56]} 68. Kb5 {[%emt 0:00:10]} Qb3+ {[%emt 0:00:14]} 69. Ka5 {[%emt 0:00:33]} Qa3+ {[%emt 0:00:39]} 70. Kb6 {[%emt 0:00:06]} Qb2+ {[%emt 0:00:21]} 71. Qb5 {[%emt 0:03:18]} Qxf2+ {[%emt 0:00:05]} 72. Kc6 {[%emt 0:00:51]} Qf6+ {[%emt 0:01:11]} 73. Kb7 {[%emt 0:00:30]} Qf3+ {[%emt 0:00:00]} 74. Kb8 {[%emt 0:02:23]} Qxg3 {[%emt 0:00:00]} 75. Qd5 {[%emt 0:00:00]} Qf4 {[%emt 0:00:53]} 76. Kb7 {[%emt 0:00:28]} Qb4+ {[%emt 0:00:00]} 77. Kc6 {[%emt 0:00:26]} Qa4+ {[%emt 0:00:23]} 78. Kd6 {[%emt 0:00:40]} Qa6+ {[%emt 0:01:14]} 79. Kd7 {[%emt 0:00:32]} Qa4+ {[%emt 0:00:09]} 80. Kc8 $2 {[%emt 0:01:17]} (80. Qc6 Qd4+ 81. Kc8) 80... Qg4+ {[%emt 0:00:14]} 81. Kb8 $2 {[%emt 0:00:28]} ({Better is} 81. Kd8 $18 Qxh4+ 82. Ke8 Qa4+ 83. Ke7 Qb4+ 84. Qd6) 81... Qb4+ $2 {[%emt 0:00:54][%mdl 8192]} (81... Qf4 $11 82. Qa5 Qg3) 82. Qb7 {[%emt 0:00:41]} Qf4 {[%emt 0:00:06]} 83. Qb5 {[%emt 0:00:16]} Qg3 $1 {[%emt 0:00:55]} 84. Qc4 {[%emt 0:00:19]} g5 {[%emt 0:01:04]} 85. hxg5 {[%emt 0:00:07]} h4 {[%emt 0:00:03]} 86. Kb7 {[%emt 0:00:50]} Qf3+ {[%emt 0:00:12]} 87. Kb6 {[%emt 0:00:56]} Qe3+ {[%emt 0:00:10]} 88. Kb5 {[%emt 0:00:00]} Qe8+ {[%emt 0:01:22]} 89. Kb4 {[%emt 0:00:30]} (89. Ka6 $142 Qc8+ 90. Kb6 Kg6 91. Qa6 (91. Qxh4 Qe6+ 92. Kc5 Qe7+ 93. Kc6 Qe6+ 94. Kb7 Qb3+ 95. Ka8 Qa3+ 96. Kb7 Qb3+ 97. Kc8 Qe6+ 98. Kd8 Qd6+ 99. Ke8 Qe6+ 100. Kd8 Qd6+ 101. Kc8 Qa6+ 102. Kd8 Qd6+ $11) 91... Qh3 92. c8=Q Qxc8 93. Qxc8 Kxg5 94. Qh3) 89... Qf8+ {[%emt 0:00:36]} 90. Kc3 {[%emt 0:00:54] White mates.} Qa3+ {[%emt 0:00:37]} 91. Kc2 {[%emt 0:00:10]} Qe3 {[%emt 0:00:24]} 92. Qc3+ {[%emt 0:00:30] Weighted Error Value: White=0.50/Black=0.81} 1-0

[Event "5th Baskent University Open 2022"]
[Site "Ankara"]
[Date "2022.07.06"]
[Round "8.13"]
[White "Unver, Cumali"]
[Black "Koksal, Ege"]
[Result "1/2-1/2"]
[ECO "C01"]
[WhiteElo "2046"]
[BlackElo "2356"]
[Annotator "TA"]
[PlyCount "33"]
[EventDate "2022.07.02"]
[EventType "swiss"]
[EventCountry "TUR"]
[SourceTitle "playchess.com"]
[Source "ChessBase"]
[SourceQuality "1"]
[TimeControl "5400+30"]

{[%evp 9,33,9,12,0,-4,-5,48,-4,0,-10,0,0,0,-16,-17,-16,-2,-15,-5,-77,-75,-80,-68,-56,-47,-89]} 1. e4 {[%emt 0:01:00]} e6 {[%emt 0:01:00]} 2. d4 {[%emt 0:01:30]} d5 {[%emt 0:00:00]} 3. exd5 {[%emt 0:01:30]} exd5 {[%emt 0:00:00]} 4. Nf3 {[%emt 0:00:30]} Bd6 {[%emt 0:03:30]} 5. c4 {[%emt 0:00:30]} Nf6 {[%emt 0:00:30]} 6. Bd3 {[%emt 0:01:30] C01: French: Exchange Variation.} O-O {[%emt 0:06:30]} 7. O-O {[%emt 0:00:00]} Bg4 {[%emt 0:05:30]} (7... dxc4 $11 8. Bxc4 Nc6) 8. Nc3 {[%emt 0:01:00]} (8. c5 $14 Be7 9. h3 Bxf3 10. Qxf3) 8... dxc4 {[%emt 0:09:30]} 9. Bxc4 {[%emt 0:00:30]} Nc6 {[%emt 0:00:00][%cal Oc6d4]} 10. h3 {[%emt 0:25:30]} Bh5 {[%emt 0:00:00]} 11. Be3 {[%emt 0:02:30]} Qd7 {[%emt 0:03:30] [#]} 12. Rc1 $146 {[%emt 0:01:30]} ({Predecessor:} 12. Re1 Rad8 13. a3 Rfe8 14. Be2 a6 15. d5 Ne5 16. Nxe5 Rxe5 17. Bxh5 Rxh5 18. Bd4 {½-½ (28) Karpus,M (2093)-Orzechowski,J (2223) Poronin 2014}) 12... Rad8 {[%emt 0:00:30]} 13. Be2 {[%emt 0:02:30]} a6 {[%emt 0:13:30]} 14. Ne5 {[%emt 0:04:30]} (14. Bg5 $11 {keeps the balance.}) 14... Bxe5 $17 {[%emt 0:00:30]} 15. dxe5 {[%emt 0:03:30]} Bxe2 {[%emt 0:10:30]} 16. Qxe2 {[%emt 0:01:30]} Nxe5 {[%emt 0:10:30]} 17. Bg5 {[%emt 0:46:48] Weighted Error Value: White=0.26 (precise) /Black=0.13 (very precise)} 1/2-1/2